fUSD/lending_fUSD_20251117
["ID","MTS","AMOUNT","RATE_DAILY","PERIOD"]
[394181637,1763358646584,-151.0,0.000248,7]
[394181638,1763358646594,-151.0,0.000248,7]
[394181639,1763358646605,-151.0,0.000248,7]
[394181640,1763358646615,-151.0,0.000248,7]
[394181643,1763358646624,-154.501776,0.000248,7]
[394181644,1763358646635,-151.0,0.000248,7]
[394181645,1763358646645,-151.0,0.000248,7]
[394181646,1763358646655,-151.0,0.000248,7]
[394181647,1763358646665,-151.0,0.000248,7]
[394181648,1763358646675,-151.0,0.000248,7]
[394181649,1763358646686,-151.0,0.000248,7]
[394181650,1763358646695,-151.0,0.000248,7]
[394181651,1763358646707,-151.0,0.000248,7]
[394181652,1763358646718,-151.0,0.000248,7]
[394181653,1763358646728,-151.0,0.000248,7]
[394181654,1763358646739,-151.0,0.000248,7]
[394181655,1763358646748,-151.0,0.000248,7]
[394181656,1763358646757,-151.0,0.000248,7]
[394181657,1763358646766,-151.0,0.000248,7]
[394181658,1763358646775,-151.0,0.000248,7]
[394181659,1763358646784,-151.0,0.000248,7]
[394181660,1763358646793,-151.0,0.000248,7]
[394181661,1763358646802,-151.0,0.000248,7]
[394181662,1763358646811,-151.0,0.000248,7]
[394181663,1763358646820,-151.0,0.000248,7]
[394181664,1763358646829,-151.0,0.000248,7]
[394181665,1763358646838,-151.0,0.000248,7]
[394181666,1763358646848,-151.0,0.000248,7]
[394181667,1763358646857,-151.0,0.000248,7]
[394181668,1763358646867,-225.572255,0.000248,7]
[394181669,1763358646876,-151.0,0.000248,7]
[394181670,1763358646885,-151.0,0.000248,7]
[394181671,1763358646894,-151.0,0.000248,7]
[394181672,1763358646904,-151.0,0.000248,7]
[394181673,1763358646913,-151.0,0.000248,7]
[394181674,1763358646923,-258.910321,0.000248,7]
[394181675,1763358646932,-151.0,0.000248,7]
[394181676,1763358646941,-151.0,0.000248,7]
[394181677,1763358646951,-151.0,0.000248,7]
[394181678,1763358646960,-215.088357,0.000248,7]
[394181679,1763358646969,-210.983281,0.000248,7]
[394181680,1763358646978,-210.983281,0.000248,7]
[394181681,1763358646987,-210.983281,0.000248,7]
[394181682,1763358646997,-210.983281,0.000248,7]
[394181683,1763358647006,-151.0,0.000248,7]
[394181684,1763358647015,-151.0,0.000248,7]
[394181685,1763358647024,-177.446999,0.000248,7]
[394181686,1763358647033,-151.0,0.000248,7]
[394181687,1763358647042,-152.2421,0.000248,7]
[394181688,1763358647051,-153.955169,0.000248,7]
[394181689,1763358647060,-184.76535,0.000248,7]
[394181690,1763358647069,-151.0,0.000248,7]
[394181691,1763358647078,-151.0,0.000248,7]
[394181692,1763358647088,-151.0,0.000248,7]
[394181693,1763358647098,-151.0,0.000248,7]
[394181694,1763358647107,-151.0,0.000248,7]
[394181695,1763358647118,-151.0,0.000248,7]
[394181697,1763358647127,-151.0,0.000248,7]
[394181698,1763358647136,-151.0,0.000248,7]
[394181699,1763358647145,-151.0,0.000248,7]
[394181700,1763358647155,-151.0,0.000248,7]
[394181701,1763358647164,-255.222647,0.000248,7]
[394181702,1763358647173,-151.0,0.000248,7]
[394181703,1763358647182,-215.363051,0.000248,7]
[394181704,1763358647191,-215.363051,0.000248,7]
[394181705,1763358647201,-215.363051,0.000248,7]
[394181706,1763358647211,-215.363051,0.000248,7]
[394181707,1763358647220,-151.0,0.000248,7]
[394181708,1763358647229,-151.0,0.000248,7]
[394181709,1763358647238,-151.0,0.000248,7]
[394181710,1763358647248,-151.0,0.000248,7]
[394181711,1763358647257,-151.0,0.000248,7]
[394181712,1763358647267,-151.0,0.000248,7]
[394181713,1763358647276,-155.138494,0.000248,7]
[394181714,1763358647285,-153.729362,0.000248,7]
[394181715,1763358647294,-151.0,0.000248,7]
[394181716,1763358647303,-151.0,0.000248,7]
[394181717,1763358647313,-151.0,0.000248,7]
[394181718,1763358647322,-151.0,0.000248,7]
[394181719,1763358647332,-650.178806,0.000248,7]
[394181720,1763358647341,-650.178806,0.000248,7]
[394181721,1763358647350,-650.178806,0.000248,7]
[394181722,1763358647360,-650.178806,0.000248,7]
[394181723,1763358647369,-151.0,0.000248,7]
[394181724,1763358647378,-151.0,0.000248,7]
[394181725,1763358647387,-151.0,0.000248,7]
[394181726,1763358647396,-151.0,0.000248,7]
[394181727,1763358647405,-285.174039,0.000248,7]
[394181728,1763358647415,-151.0,0.000248,7]
[394181729,1763358647424,-205.830157,0.000248,7]
[394181730,1763358647433,-151.0,0.000248,7]
[394181731,1763358647442,-151.0,0.000248,7]
[394181732,1763358647451,-371.615055,0.000248,7]
[394181733,1763358647460,-371.615055,0.000248,7]
[394181734,1763358647469,-151.0,0.000248,7]
[394181735,1763358647478,-371.615055,0.000248,7]
[394181736,1763358647487,-371.615055,0.000248,7]
[394181737,1763358647496,-151.0,0.000248,7]
[394181738,1763358647505,-151.0,0.000248,7]
[394181739,1763358647514,-151.0,0.000248,7]
[394181740,1763358647526,-457.356729,0.000248,7]
[394181741,1763358647535,-457.356729,0.000248,7]
[394181742,1763358647544,-151.0,0.000248,7]
[394181743,1763358647553,-151.0,0.000248,7]
[394181744,1763358647563,-457.356729,0.000248,7]
[394181745,1763358647572,-151.0,0.000248,7]
[394181746,1763358647581,-457.356729,0.000248,7]
[394181747,1763358647590,-151.0,0.000248,7]
[394181748,1763358647601,-151.0,0.000248,7]
[394181749,1763358647610,-151.0,0.000248,7]
[394181750,1763358647619,-151.0,0.000248,7]
[394181751,1763358647628,-151.0,0.000248,7]
[394181752,1763358647637,-151.0,0.000248,7]
[394181753,1763358647646,-151.0,0.000248,7]
[394181754,1763358647655,-151.0,0.000248,7]
[394181755,1763358647664,-151.0,0.000248,7]
[394181756,1763358647673,-151.0,0.000248,7]
[394181757,1763358647683,-151.0,0.000248,7]
[394181758,1763358647692,-151.0,0.000248,7]
[394181759,1763358647702,-151.135257,0.000248,7]
[394181760,1763358647711,-151.0,0.000248,7]
[394181761,1763358647720,-151.135257,0.000248,7]
[394181762,1763358647730,-151.0,0.000248,7]
[394181763,1763358647739,-151.135257,0.000248,7]
[394181764,1763358647748,-151.135257,0.000248,7]
[394181765,1763358647758,-151.0,0.000248,7]
[394181766,1763358647767,-151.0,0.000248,7]
[394181767,1763358647776,-151.0,0.000248,7]
[394181768,1763358647785,-155.107592,0.000248,7]
[394181769,1763358647794,-151.0,0.000248,7]
[394181770,1763358647806,-151.0,0.000248,7]
[394181771,1763358647816,-168.699881,0.000248,7]
[394181772,1763358647825,-151.0,0.000248,7]
[394181773,1763358647834,-151.0,0.000248,7]
[394181774,1763358647843,-151.0,0.000248,7]
[394181775,1763358647852,-151.0,0.000248,7]
[394181776,1763358647862,-251.060618,0.000248,7]
[394181777,1763358647871,-210.960158,0.000248,7]
[394181778,1763358647880,-151.0,0.000248,7]
[394181779,1763358647889,-190.527849,0.000248,7]
[394181780,1763358647899,-151.984953,0.000248,7]
[394181781,1763358647908,-190.527849,0.000248,7]
[394181782,1763358647917,-190.527849,0.000248,7]
[394181783,1763358647926,-190.527849,0.000248,7]
[394181784,1763358647935,-151.0,0.000248,7]
[394181785,1763358647944,-151.0,0.000248,7]
[394181786,1763358647953,-162.832264,0.000248,7]
[394181787,1763358647963,-151.0,0.000248,7]
[394181788,1763358647972,-633184.289708,0.000248,3]
[394181789,1763358647981,-178.645405,0.000248,7]
[394181790,1763358647990,-192.557003,0.000248,7]
[394181791,1763358647999,-151.0,0.000248,7]
[394181792,1763358648008,-178.645405,0.000248,7]
[394181793,1763358648017,-178.645405,0.000248,7]
[394181794,1763358648027,-178.645405,0.000248,7]
[394181795,1763358648036,-260.417277,0.000248,7]
[394181796,1763358648045,-151.0,0.000248,7]
[394181797,1763358648055,-260.417277,0.000248,7]
[394181798,1763358648064,-151.0,0.000248,7]
[394181799,1763358648073,-260.417277,0.000248,7]
[394181800,1763358648082,-584.819803,0.000248,7]
[394181801,1763358648091,-260.417277,0.000248,7]
[394181802,1763358648100,-151.0,0.000248,7]
[394181803,1763358648110,-584.819803,0.000248,7]
[394181804,1763358648119,-153.084793,0.000248,7]
[394181805,1763358648128,-151.0,0.000248,7]
[394181806,1763358648137,-584.819803,0.000248,7]
[394181807,1763358648147,-151.0,0.000248,7]
[394181808,1763358648156,-151.0,0.000248,7]
[394181809,1763358648165,-151.0,0.000248,7]
[394181810,1763358648174,-584.819803,0.000248,7]
[394181811,1763358648183,-151.0,0.000248,7]
[394181812,1763358648193,-151.0,0.000248,7]
[394181813,1763358648203,-151.0,0.000248,7]
[394181814,1763358648212,-151.0,0.000248,7]
[394181815,1763358648221,-151.0,0.000248,7]
[394181816,1763358648230,-155.190424,0.000248,7]
[394181817,1763358648239,-151.0,0.000248,7]
[394181818,1763358648249,-168.390896,0.000248,7]
[394181819,1763358648258,-166.163394,0.000248,7]
[394181820,1763358648268,-155.168811,0.000248,7]
[394181821,1763358648277,-151.0,0.000248,7]
[394181822,1763358648286,-173.604943,0.000248,7]
[394181823,1763358648295,-153.901207,0.000248,7]
[394181824,1763358648304,-151.99175,0.000248,7]
[394181825,1763358648313,-151.0,0.000248,7]
[394181826,1763358648323,-151.0,0.000248,7]
[394181827,1763358648332,-151.0,0.000248,7]
[394181828,1763358648342,-160.9831,0.000248,7]
[394181829,1763358648351,-151.0,0.000248,7]
[394181830,1763358648360,-151.0,0.000248,7]
[394181831,1763358648369,-482.49388554,0.000248,2]
[394181832,1763358648379,-651.173045,0.000248,7]
[394181833,1763358648388,-651.173045,0.000248,7]
[394181834,1763358648397,-151.0,0.000248,7]
[394181835,1763358648406,-651.173045,0.000248,7]
[394181836,1763358648415,-151.0,0.000248,7]
[394181837,1763358648424,-651.173045,0.000248,7]
[394181838,1763358648433,-151.0,0.000248,7]
[394181839,1763358648442,-151.0,0.000248,7]
[394181840,1763358648451,-151.0,0.000248,7]
[394181841,1763358648460,-206.403453,0.000248,7]
[394181842,1763358648470,-206.403453,0.000248,7]
[394181843,1763358648479,-151.0,0.000248,7]
[394181844,1763358648488,-206.403453,0.000248,7]
[394181845,1763358648497,-151.0,0.000248,7]
[394181846,1763358648506,-206.403453,0.000248,7]
[394181847,1763358648515,-6219.28618336,0.000248,2]
[394181848,1763358648528,-151.0,0.000248,7]
[394181849,1763358648538,-151.0,0.000248,7]
[394181850,1763358648547,-297.605951,0.000248,7]
[394181851,1763358648556,-297.605951,0.000248,7]
[394181852,1763358648566,-297.605951,0.000248,7]
[394181853,1763358648576,-297.605951,0.000248,7]
[394181854,1763358648585,-209.1782,0.000248,7]
[394181855,1763358648594,-274.700009,0.000248,7]
[394181856,1763358648605,-151.0,0.000248,7]
[394181857,1763358648615,-274.700009,0.000248,7]
[394181858,1763358648624,-274.700009,0.000248,7]
[394181859,1763358648633,-151.0,0.000248,7]
[394181860,1763358648642,-274.700009,0.000248,7]
[394181861,1763358648651,-151.0,0.000248,7]
[394181862,1763358648660,-184.654182,0.000248,7]
[394181863,1763358648670,-151.0,0.000248,7]
[394181864,1763358648679,-151.0,0.000248,7]
[394181865,1763358648688,-151.0,0.000248,7]
[394181866,1763358648697,-214.553984,0.000248,7]
[394181867,1763358648707,-151.0,0.000248,7]
[394181868,1763358648716,-214.553984,0.000248,7]
[394181869,1763358648725,-501.99806,0.000248,7]
[394181870,1763358648735,-501.99806,0.000248,7]
[394181871,1763358648744,-151.0,0.000248,7]
[394181872,1763358648756,-214.553984,0.000248,7]
[394181873,1763358648767,-393.936274,0.000248,7]
[394181874,1763358648777,-501.99806,0.000248,7]
[394181875,1763358648787,-214.553984,0.000248,7]
[394181876,1763358648799,-151.0,0.000248,7]
[394181877,1763358648809,-393.936274,0.000248,7]
[394181878,1763358648819,-501.99806,0.000248,7]
[394181879,1763358648829,-190.99841694,0.000248,2]
[394181880,1763358648839,-151.0,0.000248,7]
[394181881,1763358648849,-393.936274,0.000248,7]
[394181882,1763358648859,-309.29654756,0.00024863,2]
[394181883,1763358648868,-500.0,0.0002488,2]
[394181884,1763358648877,-200.86499294,0.0002489,2]
[394181885,1763358648889,-151.0,0.000249,7]
[394181886,1763358648898,-151.0,0.000249,7]
[394181887,1763358648908,-151.0,0.000249,7]
[394181888,1763358648918,-151.0,0.000249,7]
[394181889,1763358648929,-151.0,0.000249,7]
[394181890,1763358648938,-151.0,0.000249,7]
[394181891,1763358648947,-152.740577,0.000249,7]
[394181892,1763358648956,-152.999487,0.000249,7]
[394181893,1763358648965,-153.876992,0.000249,7]
[394181894,1763358648974,-151.0,0.000249,7]
[394181895,1763358648983,-151.0,0.000249,7]
[394181896,1763358648992,-153.889576,0.000249,7]
[394181897,1763358649001,-151.0,0.000249,7]
[394181898,1763358649010,-239.322123,0.000249,7]
[394181899,1763358649019,-159.785553,0.000249,7]
[394181900,1763358649028,-152.815759,0.000249,7]
[394181901,1763358649038,-152.879543,0.000249,7]
[394181902,1763358649047,-153.75999,0.000249,7]
[394181903,1763358649056,-153.306981,0.000249,7]
[394181904,1763358649066,-301.624884,0.000249,7]
[394181905,1763358649076,-151.0,0.000249,7]
[394181906,1763358649085,-151.0,0.000249,7]
[394181907,1763358649265,-151.0,0.000249,7]
[394181908,1763358649300,-151.0,0.000249,7]
[394181909,1763358649310,-151.0,0.000249,7]
[394181910,1763358649320,-151.0,0.000249,7]
[394181911,1763358649329,-151.0,0.000249,7]
[394181912,1763358649339,-151.0,0.000249,7]
[394181913,1763358649348,-153.588076,0.000249,7]
[394181914,1763358649358,-254.459168,0.000249,7]
[394181915,1763358649368,-151.0,0.000249,7]
[394181916,1763358649378,-151.0,0.000249,7]
[394181917,1763358649387,-155.071394,0.000249,7]
[394181918,1763358649396,-151.0,0.000249,7]
[394181919,1763358649405,-151.0,0.000249,7]
[394181920,1763358649414,-151.0,0.000249,7]
[394181921,1763358649424,-151.0,0.000249,7]
[394181922,1763358649434,-239.929972,0.000249,7]
[394181923,1763358649443,-151.0,0.000249,7]
[394181924,1763358649452,-151.0,0.000249,7]
[394181925,1763358649461,-151.0,0.000249,7]
[394181926,1763358649471,-151.0,0.000249,7]
[394181927,1763358649480,-151.0,0.000249,7]
[394181928,1763358649490,-152.998851,0.000249,7]
[394181929,1763358649500,-151.0,0.000249,7]
[394181930,1763358649510,-151.0,0.000249,7]
[394181931,1763358649520,-151.0,0.000249,7]
[394181932,1763358649531,-153.881735,0.000249,7]
[394181933,1763358649543,-151.0,0.000249,7]
[394181934,1763358649552,-151.0,0.000249,7]
[394181935,1763358649563,-151.0,0.000249,7]
[394181936,1763358649571,-151.000007,0.000249,7]
[394181937,1763358649581,-151.0,0.000249,7]
[394181938,1763358649590,-151.0,0.000249,7]
[394181939,1763358649601,-193.748873,0.000249,7]
[394181940,1763358649611,-151.0,0.000249,7]
[394181941,1763358649620,-151.0,0.000249,7]
[394181942,1763358649630,-151.0,0.000249,7]
[394181943,1763358649639,-151.0,0.000249,7]
[394181944,1763358649648,-210.983281,0.000249,7]
[394181945,1763358649658,-210.983281,0.000249,7]
[394181946,1763358649668,-210.983281,0.000249,7]
[394181947,1763358649678,-210.983281,0.000249,7]
[394181948,1763358649689,-151.0,0.000249,7]
[394181949,1763358649700,-151.0,0.000249,7]
[394181950,1763358649710,-151.0,0.000249,7]
[394181951,1763358649720,-151.0,0.000249,7]
[394181952,1763358649729,-151.0,0.000249,7]
[394181953,1763358649738,-151.0,0.000249,7]
[394181954,1763358649748,-151.0,0.000249,7]
[394181955,1763358649757,-151.0,0.000249,7]
[394181956,1763358649766,-151.0,0.000249,7]
[394181957,1763358649775,-151.0,0.000249,7]
[394181958,1763358649785,-151.0,0.000249,7]
[394181959,1763358649794,-157.232973,0.000249,7]
[394181960,1763358649804,-155.215521,0.000249,7]
[394181961,1763358649814,-151.0,0.000249,7]
[394181962,1763358649824,-215.363051,0.000249,7]
[394181963,1763358649833,-215.363051,0.000249,7]
[394181964,1763358649843,-215.363051,0.000249,7]
[394181965,1763358649853,-215.363051,0.000249,7]
[394181966,1763358649863,-166.131791,0.000249,7]
[394181967,1763358649872,-151.0,0.000249,7]
[394181968,1763358649881,-199.150033,0.000249,7]
[394181969,1763358649891,-151.0,0.000249,7]
[394181970,1763358649901,-151.0,0.000249,7]
[394181971,1763358649911,-151.0,0.000249,7]
[394181972,1763358649920,-151.0,0.000249,7]
[394181973,1763358649930,-151.0,0.000249,7]
[394181974,1763358649940,-151.0,0.000249,7]
[394181975,1763358649950,-151.0,0.000249,7]
[394181976,1763358649960,-650.178806,0.000249,7]
[394181977,1763358649970,-650.178806,0.000249,7]
[394181978,1763358649979,-650.178806,0.000249,7]
[394181979,1763358649990,-650.178806,0.000249,7]
[394181980,1763358650000,-151.0,0.000249,7]
[394181981,1763358650011,-151.0,0.000249,7]
[394181982,1763358650021,-151.0,0.000249,7]
[394181983,1763358650031,-151.0,0.000249,7]
[394181984,1763358650041,-151.0,0.000249,7]
[394181985,1763358650050,-152.89054,0.000249,7]
[394181986,1763358650060,-371.615055,0.000249,7]
[394181987,1763358650070,-371.615055,0.000249,7]
[394181988,1763358650079,-151.0,0.000249,7]
[394181989,1763358650090,-371.615055,0.000249,7]
[394181990,1763358650099,-371.615055,0.000249,7]
[394181991,1763358650109,-151.0,0.000249,7]
[394181992,1763358650121,-151.0,0.000249,7]
[394181993,1763358650131,-151.0,0.000249,7]
[394181994,1763358650140,-457.356729,0.000249,7]
[394181995,1763358650150,-457.356729,0.000249,7]
[394181996,1763358650159,-151.0,0.000249,7]
[394181997,1763358650168,-151.0,0.000249,7]
[394181998,1763358650178,-457.356729,0.000249,7]
[394181999,1763358650187,-151.0,0.000249,7]
[394182000,1763358650196,-457.356729,0.000249,7]
[394182001,1763358650205,-151.0,0.000249,7]
[394182002,1763358650215,-151.0,0.000249,7]
[394182003,1763358650225,-151.0,0.000249,7]
[394182004,1763358650235,-151.0,0.000249,7]
[394182005,1763358650244,-151.0,0.000249,7]
[394182006,1763358650254,-151.0,0.000249,7]
[394182007,1763358650263,-151.0,0.000249,7]
[394182008,1763358650274,-151.0,0.000249,7]
[394182009,1763358650284,-151.0,0.000249,7]
[394182010,1763358650293,-151.0,0.000249,7]
[394182011,1763358650303,-287.233314,0.000249,7]
[394182012,1763358650313,-152.43587,0.000249,7]
[394182013,1763358650323,-151.135257,0.000249,7]
[394182014,1763358650332,-151.0,0.000249,7]
[394182015,1763358650341,-151.135257,0.000249,7]
[394182016,1763358650350,-151.0,0.000249,7]
[394182017,1763358650361,-151.135257,0.000249,7]
[394182018,1763358650371,-151.135257,0.000249,7]
[394182019,1763358650380,-161.999726,0.000249,7]
[394182020,1763358650390,-151.0,0.000249,7]
[394182021,1763358650400,-220.044488,0.000249,7]
[394182022,1763358650410,-151.0,0.000249,7]
[394182023,1763358650423,-151.0,0.000249,7]
[394182024,1763358650433,-153.462171,0.000249,7]
[394182025,1763358650444,-151.0,0.000249,7]
[394182026,1763358650456,-151.0,0.000249,7]
[394182027,1763358650468,-151.0,0.000249,7]
[394182028,1763358650479,-155.681057,0.000249,7]
[394182029,1763358650490,-190.527849,0.000249,7]
[394182030,1763358650501,-190.527849,0.000249,7]
[394182031,1763358650511,-190.527849,0.000249,7]
[394182032,1763358650523,-190.527849,0.000249,7]
[394182033,1763358650535,-151.0,0.000249,7]
[394182034,1763358650545,-154.764255,0.000249,7]
[394182035,1763358650554,-151.0,0.000249,7]
[394182036,1763358650564,-178.645405,0.000249,7]
[394182037,1763358650575,-151.0,0.000249,7]
[394182038,1763358650584,-178.645405,0.000249,7]
[394182039,1763358650594,-178.645405,0.000249,7]
[394182040,1763358650605,-178.645405,0.000249,7]
[394182041,1763358650616,-260.417277,0.000249,7]
[394182042,1763358650625,-483502.50063194,0.000249,3]
[394182043,1763358651032,-625.14922681,0.000249,3]
[394182044,1763358651049,-82062.63937401,0.000249,3]
[394182045,1763358651060,-816.0,0.000249,3]
[394182046,1763358651087,-757.32971529,0.000249,3]
[394182047,1763358651166,-455.83943095,0.000249,3]
[394182048,1763358995374,400.0,0.00030136,120]
[394182051,1763359220044,352.43856384,0.00030136,120]
[394182053,1763359421880,184.5148686,0.00030136,120]
[394182055,1763359589192,328.77,0.00013699,2]
[394182062,1763359740477,150.0,0.00030135,120]
[394182078,1763359832027,-177.22059077,0.00017799,2]
[394182079,1763359832037,-331.0,0.00017799,2]
[394182080,1763359832047,-500.0,0.00017999,2]
[394182081,1763359832059,-1169.36930323,0.00018011,2]
[394182082,1763359832070,-344.81,0.00018011,2]
[394182083,1763359832083,-137.66069677,0.00018011,2]
[394182084,1763359832092,-168.0,0.00018116,2]
[394182085,1763359832102,-168.0,0.00018536,2]
[394182086,1763359832112,-168.0,0.00018892,2]
[394182087,1763359832122,-1604.0,0.0001895,2]
[394182088,1763359832131,-109.30238717,0.0001895,2]
[394182089,1763359832142,-917.10761283,0.0001895,2]
[394182090,1763359832151,-19.45742299,0.00018996,2]
[394182091,1763359832162,-148.54257701,0.00018996,2]
[394182092,1763359832171,-168.0,0.0001909,2]
[394182093,1763359832180,-168.0,0.00019163,2]
[394182094,1763359832189,-168.0,0.00019183,2]
[394182095,1763359832198,-168.0,0.00019195,2]
[394182096,1763359832208,-722.29467877,0.00019379,2]
[394182097,1763359832217,-168.0,0.00019387,2]
[394182098,1763359832227,-1318.0,0.00019479,2]
[394182099,1763359832236,-608.0,0.00019479,2]
[394182100,1763359832246,-575.0,0.00019479,2]
[394182101,1763359832255,-1599.0,0.00019479,2]
[394182102,1763359832265,-821.0,0.00019479,2]
[394182103,1763359832274,-1275.0,0.00019479,2]
[394182104,1763359832283,-793.0,0.00019479,2]
[394182105,1763359832293,-88.97756171,0.00020187,2]
[394182106,1763359832312,-239.79243829,0.00020187,2]
[394182107,1763359832321,-168.84,0.00020276,2]
[394182108,1763359832331,-277.09757171,0.00020365,2]
[394182109,1763359832342,-1275.63242829,0.00020365,2]
[394182110,1763359832351,-1000.0,0.00020399,2]
[394182111,1763359832361,-500.0,0.00020722,2]
[394182112,1763359832371,-506.88934858,0.00020722,2]
[394182113,1763359832380,-501.90608714,0.00020722,2]
[394182114,1763359832389,-500.0,0.00020809,2]
[394182115,1763359832398,-8144.12463651,0.00021086,2]
[394182116,1763359832408,-150.0,0.00021183,2]
[394182117,1763359832417,-300.0,0.00021581,2]
[394182118,1763359832427,-166.66,0.00021679,2]
[394182119,1763359832436,-170.86303096,0.00021706,2]
[394182120,1763359832445,-479.1746172,0.00021792,2]
[394182121,1763359832455,-162.28209688,0.00021814,2]
[394182122,1763359832464,-503.6961268,0.00021814,2]
[394182125,1763359832473,-501.38602614,0.00021853,2]
[394182128,1763359832483,-1462.023,0.000219,2]
[394182131,1763359832493,-216.474,0.000219,2]
[394182134,1763359832502,-1604.0,0.0002195,2]
[394182136,1763359832512,-186.56,0.00022,2]
[394182138,1763359832521,-177.22059077,0.00022061,2]
[394182140,1763359832530,-421.27753905,0.00022161,2]
[394182150,1763359832810,-9552.16786547,0.00022161,2]
[394182151,1763359832845,-500.0,0.00022161,2]
[394182152,1763359832856,-500.0,0.00022161,2]
[394182153,1763359832866,-500.0,0.00022161,2]
[394182154,1763359832875,-500.0,0.00022161,2]
[394182155,1763359832885,-500.0,0.00022161,2]
[394182156,1763359832895,-500.0,0.00022161,2]
[394182157,1763359832904,-500.0,0.00022161,2]
[394182158,1763359832917,-500.0,0.00022161,2]
[394182159,1763359832927,-500.0,0.00022161,2]
[394182160,1763359832936,-500.0,0.00022161,2]
[394182161,1763359832945,-500.0,0.00022161,2]
[394182162,1763359832955,-277.35679052,0.00022161,2]
[394182163,1763359832965,-9905.5980765,0.00022216,2]
[394182164,1763359832974,-10272.10520533,0.00022271,2]
[394182165,1763359832984,-10652.17309792,0.00022326,2]
[394182166,1763359832994,-11046.30350255,0.00022381,2]
[394182167,1763359833004,-166.66,0.00022394,2]
[394182168,1763359833013,-11455.01673214,0.00022436,2]
[394182169,1763359833022,-630.75143934,0.00022473,2]
[394182170,1763359833031,-500.0,0.00022473,2]
[394182171,1763359833040,-500.0,0.00022473,2]
[394182172,1763359833050,-500.0,0.00022473,2]
[394182173,1763359833059,-1318.0,0.00022479,2]
[394182174,1763359833068,-608.0,0.00022479,2]
[394182175,1763359833077,-575.0,0.00022479,2]
[394182176,1763359833087,-1599.0,0.00022479,2]
[394182177,1763359833096,-821.0,0.00022479,2]
[394182178,1763359833106,-1275.0,0.00022479,2]
[394182179,1763359833116,-793.0,0.00022479,2]
[394182180,1763359833127,-11878.85235123,0.00022491,2]
[394182181,1763359833136,-1000.0,0.000225,2]
[394182182,1763359833146,-12318.36988823,0.00022546,2]
[394182183,1763359833155,-9861.01732744,0.00022556,2]
[394182184,1763359833165,-12774.14957409,0.00022601,2]